[Event "Late-Titled-Tuesday-Blitz-September-19-2023"]
[Site "Chess.com"]
[Date "2023.09.19"]
[Round "7"]
[White "slorovel"]
[Black "PapaieDudu"]
[Result "1/2-1/2"]
[WhiteElo "2505"]
[BlackElo "2392"]
[TimeControl "180+1"]
[EndTime "15:16:19 PDT"]
[Termination "Game drawn by stalemate"]

1. e4 {[%clk 0:03:00.9]} 1... c5 {[%clk 0:02:58.9]} 2. Nc3 {[%clk 0:02:55.8]}
2... e6 {[%clk 0:02:57]} 3. f4 {[%clk 0:02:51.4]} 3... d5 {[%clk 0:02:55.5]} 4.
Bb5+ {[%clk 0:02:49.1]} 4... Bd7 {[%clk 0:02:44.4]} 5. Bxd7+ {[%clk 0:02:49.3]}
5... Nxd7 {[%clk 0:02:44.3]} 6. exd5 {[%clk 0:02:49.1]} 6... e5 {[%clk
0:02:20.2]} 7. Nf3 {[%clk 0:02:39.7]} 7... exf4 {[%clk 0:02:17.4]} 8. O-O {[%clk
0:02:40.1]} 8... Bd6 {[%clk 0:02:17.5]} 9. d4 {[%clk 0:02:39.6]} 9... cxd4
{[%clk 0:02:15.4]} 10. Qxd4 {[%clk 0:02:39]} 10... Bc5 {[%clk 0:02:15.4]} 11.
Re1+ {[%clk 0:02:38.6]} 11... Kf8 {[%clk 0:01:51.1]} 12. Bxf4 {[%clk 0:02:37.4]}
12... Bxd4+ {[%clk 0:01:51.2]} 13. Nxd4 {[%clk 0:02:36.3]} 13... Qf6 {[%clk
0:01:19.2]} 14. Nf5 {[%clk 0:02:26.3]} 14... Re8 {[%clk 0:01:01.6]} 15. Bd6+
{[%clk 0:02:18.3]} 15... Ne7 {[%clk 0:01:02]} 16. Bxe7+ {[%clk 0:02:12.8]} 16...
Rxe7 {[%clk 0:01:01.7]} 17. Nxe7 {[%clk 0:02:13.7]} 17... Qb6+ {[%clk
0:00:47.6]} 18. Kh1 {[%clk 0:02:12.3]} 18... Qxb2 {[%clk 0:00:48.2]} 19. Na4
{[%clk 0:01:32.2]} 19... Qa3 {[%clk 0:00:43.9]} 20. Re4 {[%clk 0:01:30]} 20...
Qxe7 {[%clk 0:00:39.5]} 21. Rxe7 {[%clk 0:01:29.6]} 21... Kxe7 {[%clk
0:00:40.4]} 22. c4 {[%clk 0:01:28.3]} 22... Rc8 {[%clk 0:00:39.7]} 23. Nb2
{[%clk 0:01:27.7]} 23... Ne5 {[%clk 0:00:37.4]} 24. Rc1 {[%clk 0:01:19.7]} 24...
Kd6 {[%clk 0:00:37]} 25. Kg1 {[%clk 0:01:16.6]} 25... b5 {[%clk 0:00:36.7]} 26.
Kf2 {[%clk 0:01:02]} 26... bxc4 {[%clk 0:00:35.8]} 27. Ke3 {[%clk 0:00:59.1]}
27... Kxd5 {[%clk 0:00:32.7]} 28. Rd1+ {[%clk 0:00:59.5]} 28... Ke6 {[%clk
0:00:33.1]} 29. Ke4 {[%clk 0:00:58.4]} 29... f5+ {[%clk 0:00:32.8]} 30. Kd4
{[%clk 0:00:57.9]} 30... Rd8+ {[%clk 0:00:32.5]} 31. Kc3 {[%clk 0:00:58.3]}
31... Rxd1 {[%clk 0:00:26.8]} 32. Nxd1 {[%clk 0:00:59.2]} 32... f4 {[%clk
0:00:24.8]} 33. a4 {[%clk 0:00:57.4]} 33... a5 {[%clk 0:00:22.4]} 34. Nf2 {[%clk
0:00:51.1]} 34... Kd5 {[%clk 0:00:21.5]} 35. Nh3 {[%clk 0:00:51.4]} 35... Nd3
{[%clk 0:00:17.3]} 36. Ng5 {[%clk 0:00:51.5]} 36... h6 {[%clk 0:00:16.6]} 37.
Nf3 {[%clk 0:00:47.8]} 37... g5 {[%clk 0:00:16.4]} 38. Nd4 {[%clk 0:00:45.3]}
38... g4 {[%clk 0:00:15.3]} 39. Nf5 {[%clk 0:00:41.6]} 39... h5 {[%clk
0:00:13.7]} 40. h3 {[%clk 0:00:38.4]} 40... f3 {[%clk 0:00:12.3]} 41. hxg4
{[%clk 0:00:33.9]} 41... fxg2 {[%clk 0:00:11.4]} 42. Ne3+ {[%clk 0:00:33.7]}
42... Ke4 {[%clk 0:00:11]} 43. Nxg2 {[%clk 0:00:34.6]} 43... hxg4 {[%clk
0:00:11]} 44. Kxc4 {[%clk 0:00:35.1]} 44... Nb2+ {[%clk 0:00:08.9]} 45. Kb5
{[%clk 0:00:34.7]} 45... Kf3 {[%clk 0:00:07.6]} 46. Nh4+ {[%clk 0:00:33.5]}
46... Kg3 {[%clk 0:00:05.9]} 47. Nf5+ {[%clk 0:00:33.6]} 47... Kf4 {[%clk
0:00:06.1]} 48. Nh4 {[%clk 0:00:33.7]} 48... g3 {[%clk 0:00:05.9]} 49. Kxa5
{[%clk 0:00:32.2]} 49... Kg4 {[%clk 0:00:06]} 50. Ng2 {[%clk 0:00:32.1]} 50...
Kf3 {[%clk 0:00:06.3]} 51. Nh4+ {[%clk 0:00:30.9]} 51... Kg4 {[%clk 0:00:06.8]}
52. Ng2 {[%clk 0:00:30.6]} 52... Kh3 {[%clk 0:00:07.2]} 53. Nf4+ {[%clk
0:00:30.3]} 53... Kh2 {[%clk 0:00:07.5]} 54. Kb5 {[%clk 0:00:23.7]} 54... Nd3
{[%clk 0:00:06.6]} 55. Nxd3 {[%clk 0:00:20.6]} 55... g2 {[%clk 0:00:07.2]} 56.
Ne1 {[%clk 0:00:20.2]} 56... g1=N {[%clk 0:00:04.7]} 57. a5 {[%clk 0:00:18.7]}
57... Ne2 {[%clk 0:00:05]} 58. a6 {[%clk 0:00:17.7]} 58... Nf4 {[%clk
0:00:04.8]} 59. a7 {[%clk 0:00:16.1]} 59... Ne6 {[%clk 0:00:05.1]} 60. Kb6
{[%clk 0:00:12.9]} 60... Nf4 {[%clk 0:00:01.7]} 61. a8=Q {[%clk 0:00:11.6]}
61... Kg3 {[%clk 0:00:02.1]} 62. Qf3+ {[%clk 0:00:10.5]} 62... Kh4 {[%clk
0:00:01]} 63. Qxf4+ {[%clk 0:00:10.8]} 63... Kh3 {[%clk 0:00:01.9]} 64. Kc5
{[%clk 0:00:08.7]} 1/2-1/2

[Event "Late-Titled-Tuesday-Blitz-September-19-2023"]
[Site "Chess.com"]
[Date "2023.09.19"]
[Round "7"]
[White "Bilan_Danila"]
[Black "Sokoloco"]
[Result "1-0"]
[WhiteElo "2577"]
[BlackElo "2661"]
[TimeControl "180+1"]
[EndTime "15:16:21 PDT"]
[Termination "Bilan_Danila won by resignation"]

1. d4 {[%clk 0:02:59.8]} 1... d5 {[%clk 0:02:59.8]} 2. Nf3 {[%clk 0:02:59.7]}
2... c6 {[%clk 0:02:58.6]} 3. c4 {[%clk 0:02:43.7]} 3... e6 {[%clk 0:02:58]} 4.
Qc2 {[%clk 0:02:39.6]} 4... Nd7 {[%clk 0:02:42.7]} 5. Bf4 {[%clk 0:02:22.7]}
5... Ngf6 {[%clk 0:02:40.6]} 6. e3 {[%clk 0:02:22.8]} 6... Ne4 {[%clk
0:02:40.7]} 7. Nbd2 {[%clk 0:02:20]} 7... g5 {[%clk 0:02:24.3]} 8. Bg3 {[%clk
0:01:46.9]} 8... f5 {[%clk 0:02:13.5]} 9. Nxe4 {[%clk 0:01:42.5]} 9... fxe4
{[%clk 0:02:13.3]} 10. Nd2 {[%clk 0:01:39.3]} 10... Bg7 {[%clk 0:01:46.5]} 11.
f3 {[%clk 0:01:28.2]} 11... e5 {[%clk 0:01:40.8]} 12. fxe4 {[%clk 0:01:21]}
12... exd4 {[%clk 0:01:40.1]} 13. exd4 {[%clk 0:01:21.4]} 13... Bxd4 {[%clk
0:01:34]} 14. O-O-O {[%clk 0:01:18.2]} 14... O-O {[%clk 0:01:11.2]} 15. Nf3
{[%clk 0:00:58.8]} 15... Be3+ {[%clk 0:01:07.2]} 16. Kb1 {[%clk 0:00:57.5]}
16... Nc5 {[%clk 0:01:06.8]} 17. cxd5 {[%clk 0:00:39.3]} 17... Qb6 {[%clk
0:00:31.3]} 18. dxc6 {[%clk 0:00:21.5]} 18... Be6 {[%clk 0:00:31.6]} 19. Bc4
{[%clk 0:00:18]} 19... Qxc6 {[%clk 0:00:28.7]} 20. Rd6 {[%clk 0:00:17.2]} 20...
Qe8 {[%clk 0:00:22.8]} 21. Rxe6 {[%clk 0:00:12.9]} 21... Nxe6 {[%clk 0:00:23.7]}
22. Qb3 {[%clk 0:00:13.5]} 22... Bf4 {[%clk 0:00:16.7]} 23. Bxe6+ {[%clk
0:00:12.1]} 23... Kg7 {[%clk 0:00:17.5]} 24. Bd5 {[%clk 0:00:11.1]} 24... Qe7
{[%clk 0:00:16.4]} 25. Qc3+ {[%clk 0:00:09.5]} 25... Kh6 {[%clk 0:00:14.4]} 26.
Bxf4 {[%clk 0:00:09.2]} 26... Rxf4 {[%clk 0:00:14.5]} 27. Rc1 {[%clk 0:00:08.6]}
27... Raf8 {[%clk 0:00:12.9]} 28. Nd4 {[%clk 0:00:08.8]} 28... Rxe4 {[%clk
0:00:09.5]} 29. Bxe4 {[%clk 0:00:07.8]} 29... Qxe4+ {[%clk 0:00:10.4]} 30. Ka1
{[%clk 0:00:07.1]} 30... Qe5 {[%clk 0:00:09.3]} 31. a3 {[%clk 0:00:07.4]} 31...
Rf6 {[%clk 0:00:07.7]} 32. Nf3 {[%clk 0:00:05.9]} 32... Qf4 {[%clk 0:00:08.2]}
33. Nd4 {[%clk 0:00:01.5]} 33... Rd6 {[%clk 0:00:07.7]} 34. Nb3 {[%clk
0:00:01.9]} 34... Rc6 {[%clk 0:00:07.8]} 35. Qh3+ {[%clk 0:00:02.6]} 35... Kg7
{[%clk 0:00:06.8]} 36. Rxc6 {[%clk 0:00:03.2]} 36... bxc6 {[%clk 0:00:07]} 37.
Qd7+ {[%clk 0:00:03.9]} 37... Kg8 {[%clk 0:00:07]} 38. Qxc6 {[%clk 0:00:04.2]}
38... Qxh2 {[%clk 0:00:06.9]} 39. Ka2 {[%clk 0:00:04.8]} 39... Qf4 {[%clk
0:00:06.1]} 40. Qd5+ {[%clk 0:00:05.3]} 40... Kg7 {[%clk 0:00:06.4]} 41. Qd7+
{[%clk 0:00:05]} 41... Kg6 {[%clk 0:00:06.5]} 42. Qxa7 {[%clk 0:00:05.6]} 42...
h5 {[%clk 0:00:06]} 43. Qb6+ {[%clk 0:00:06.3]} 43... Kf5 {[%clk 0:00:05.7]} 44.
Qb5+ {[%clk 0:00:06.6]} 44... Kg4 {[%clk 0:00:04.8]} 45. a4 {[%clk 0:00:07.1]}
45... Kg3 {[%clk 0:00:03.3]} 46. a5 {[%clk 0:00:07.2]} 46... Kxg2 {[%clk
0:00:03.9]} 47. a6 {[%clk 0:00:07.8]} 47... g4 {[%clk 0:00:03]} 48. a7 {[%clk
0:00:07.2]} 48... Qf3 {[%clk 0:00:03.3]} 49. Qb8 {[%clk 0:00:06.7]} 49... g3
{[%clk 0:00:02.1]} 50. a8=Q {[%clk 0:00:07.1]} 50... h4 {[%clk 0:00:02.9]} 51.
Qbb7 {[%clk 0:00:06.9]} 51... Qxb7 {[%clk 0:00:02.6]} 52. Qxb7+ {[%clk
0:00:07.8]} 52... Kh2 {[%clk 0:00:03.5]} 53. Nd2 {[%clk 0:00:07.8]} 53... g2
{[%clk 0:00:03.9]} 54. Qc7+ {[%clk 0:00:08.1]} 54... Kh3 {[%clk 0:00:04.1]} 55.
Qd7+ {[%clk 0:00:08.1]} 55... Kg3 {[%clk 0:00:04.1]} 56. Qg7+ {[%clk 0:00:07.4]}
56... Kf2 {[%clk 0:00:04.6]} 57. Ne4+ {[%clk 0:00:07.6]} 57... Kf3 {[%clk
0:00:04.7]} 58. Ng5+ {[%clk 0:00:07.7]} 58... Kg4 {[%clk 0:00:03.5]} 59. Ne6+
{[%clk 0:00:08]} 59... Kf3 {[%clk 0:00:03.5]} 60. Qf6+ {[%clk 0:00:08.4]} 60...
Kg3 {[%clk 0:00:02.9]} 61. Qg5+ {[%clk 0:00:08.8]} 61... Kf3 {[%clk 0:00:02.7]}
62. Nd4+ {[%clk 0:00:06.4]} 62... Kf2 {[%clk 0:00:03.3]} 63. Qxh4+ {[%clk
0:00:06.8]} 63... Ke3 {[%clk 0:00:03.5]} 64. Qg3+ {[%clk 0:00:06.9]} 1-0

[Event "Late-Titled-Tuesday-Blitz-September-19-2023"]
[Site "Chess.com"]
[Date "2023.09.19"]
[Round "7"]
[White "Joshukid"]
[Black "Giorno"]
[Result "1/2-1/2"]
[WhiteElo "2563"]
[BlackElo "2475"]
[TimeControl "180+1"]
[EndTime "15:16:22 PDT"]
[Termination "Game drawn by repetition"]

1. Nf3 {[%clk 0:03:00.9]} 1... Nf6 {[%clk 0:02:58.5]} 2. c4 {[%clk 0:02:55.8]}
2... e6 {[%clk 0:02:56.2]} 3. g3 {[%clk 0:02:55.8]} 3... d5 {[%clk 0:02:53.8]}
4. Bg2 {[%clk 0:02:56.2]} 4... Be7 {[%clk 0:02:53.2]} 5. O-O {[%clk 0:02:56.6]}
5... O-O {[%clk 0:02:53.7]} 6. b3 {[%clk 0:02:57.2]} 6... c5 {[%clk 0:02:52.6]}
7. Bb2 {[%clk 0:02:54]} 7... d4 {[%clk 0:02:52.2]} 8. e3 {[%clk 0:02:53.4]} 8...
Nc6 {[%clk 0:02:52.2]} 9. exd4 {[%clk 0:02:54]} 9... cxd4 {[%clk 0:02:53.1]} 10.
Re1 {[%clk 0:02:54.9]} 10... a5 {[%clk 0:02:49.8]} 11. Na3 {[%clk 0:02:49.4]}
11... Bc5 {[%clk 0:02:47.7]} 12. Nb5 {[%clk 0:02:44.5]} 12... Qb6 {[%clk
0:02:42.2]} 13. Ne5 {[%clk 0:02:33]} 13... Nxe5 {[%clk 0:02:40.7]} 14. Rxe5
{[%clk 0:02:33.9]} 14... Rd8 {[%clk 0:02:35.8]} 15. d3 {[%clk 0:02:14.3]} 15...
Bd7 {[%clk 0:02:35]} 16. Rxc5 {[%clk 0:02:08.4]} 16... Qxc5 {[%clk 0:02:30.6]}
17. Bxd4 {[%clk 0:02:06.9]} 17... Qe7 {[%clk 0:02:20.8]} 18. Bb6 {[%clk
0:02:05.5]} 18... Rf8 {[%clk 0:02:06.7]} 19. d4 {[%clk 0:01:42.6]} 19... Bxb5
{[%clk 0:02:06.4]} 20. Bc5 {[%clk 0:01:39]} 20... Qd7 {[%clk 0:02:06.1]} 21.
Bxf8 {[%clk 0:01:39.2]} 21... Rxf8 {[%clk 0:02:05.5]} 22. cxb5 {[%clk
0:01:38.9]} 22... Qxb5 {[%clk 0:02:06.4]} 23. Qf1 {[%clk 0:01:32.9]} 23... Qb6
{[%clk 0:02:05.9]} 24. Qc4 {[%clk 0:01:23.9]} 24... Rd8 {[%clk 0:02:05.6]} 25.
Qc5 {[%clk 0:01:24.4]} 25... Qxc5 {[%clk 0:01:52.3]} 26. dxc5 {[%clk 0:01:25.3]}
26... Rc8 {[%clk 0:01:53]} 27. Bxb7 {[%clk 0:01:21]} 27... Rxc5 {[%clk
0:01:52.4]} 28. Bf3 {[%clk 0:01:20.3]} 28... Kf8 {[%clk 0:01:51.7]} 29. Kg2
{[%clk 0:01:14.9]} 29... Nd5 {[%clk 0:01:48.9]} 30. Rd1 {[%clk 0:00:41.2]} 30...
Rc2 {[%clk 0:01:43.7]} 31. a4 {[%clk 0:00:34.5]} 31... Rc5 {[%clk 0:01:31.7]}
32. Rd4 {[%clk 0:00:25.4]} 32... Ke7 {[%clk 0:01:28.8]} 33. Bxd5 {[%clk
0:00:21.2]} 33... exd5 {[%clk 0:01:28.2]} 34. b4 {[%clk 0:00:20.7]} 34... axb4
{[%clk 0:01:27.6]} 35. Rxb4 {[%clk 0:00:21.6]} 35... Ra5 {[%clk 0:01:23]} 36.
Kf3 {[%clk 0:00:20]} 36... Ke6 {[%clk 0:01:13.7]} 37. Ke3 {[%clk 0:00:19.8]}
37... Ke5 {[%clk 0:00:56.8]} 38. f4+ {[%clk 0:00:19.7]} 38... Kd6 {[%clk
0:00:47.6]} 39. Kd4 {[%clk 0:00:19.8]} 39... Ra6 {[%clk 0:00:47.8]} 40. Kc3
{[%clk 0:00:18]} 40... h5 {[%clk 0:00:38.4]} 41. Kb3 {[%clk 0:00:16.8]} 41...
Kc6 {[%clk 0:00:33.2]} 42. Rb8 {[%clk 0:00:16.1]} 42... Kc5 {[%clk 0:00:30.3]}
43. Rc8+ {[%clk 0:00:14]} 43... Kd4 {[%clk 0:00:28]} 44. Kb4 {[%clk 0:00:14.5]}
44... Rb6+ {[%clk 0:00:27.3]} 45. Ka3 {[%clk 0:00:14.9]} 45... Ke3 {[%clk
0:00:24.2]} 46. a5 {[%clk 0:00:15.5]} 46... Rb1 {[%clk 0:00:23.7]} 47. Ra8
{[%clk 0:00:11.9]} 47... d4 {[%clk 0:00:23.2]} 48. a6 {[%clk 0:00:12.1]} 48...
d3 {[%clk 0:00:19.8]} 49. a7 {[%clk 0:00:11.6]} 49... Kf2 {[%clk 0:00:12.3]} 50.
Ka2 {[%clk 0:00:08.1]} 50... Rb6 {[%clk 0:00:11.6]} 51. Rd8 {[%clk 0:00:05.5]}
51... Ra6+ {[%clk 0:00:11.2]} 52. Kb3 {[%clk 0:00:06]} 52... Rxa7 {[%clk
0:00:11.7]} 53. Rxd3 {[%clk 0:00:06.8]} 53... Kg2 {[%clk 0:00:11.4]} 54. h4
{[%clk 0:00:07.3]} 54... Re7 {[%clk 0:00:10.4]} 55. Kc4 {[%clk 0:00:05.3]} 55...
Kf2 {[%clk 0:00:10.1]} 56. Kd5 {[%clk 0:00:05.3]} 56... g6 {[%clk 0:00:10.2]}
57. Kd6 {[%clk 0:00:05.4]} 57... Re6+ {[%clk 0:00:09.7]} 58. Kd7 {[%clk
0:00:05.6]} 58... Re3 {[%clk 0:00:10.3]} 59. Rxe3 {[%clk 0:00:04.8]} 59... Kxe3
{[%clk 0:00:11.2]} 60. Ke7 {[%clk 0:00:05.2]} 60... Kf3 {[%clk 0:00:10]} 61.
Kxf7 {[%clk 0:00:05.6]} 61... Kxg3 {[%clk 0:00:08.9]} 62. Kxg6 {[%clk
0:00:06.2]} 62... Kxf4 {[%clk 0:00:09.2]} 63. Kxh5 {[%clk 0:00:05.9]} 63... Kf5
{[%clk 0:00:09.7]} 64. Kh6 {[%clk 0:00:06.5]} 64... Kf6 {[%clk 0:00:09.6]} 65.
Kh7 {[%clk 0:00:07.2]} 65... Kf7 {[%clk 0:00:09.8]} 66. h5 {[%clk 0:00:07.3]}
66... Kf8 {[%clk 0:00:09.8]} 67. h6 {[%clk 0:00:07.6]} 67... Kf7 {[%clk
0:00:10]} 68. Kh8 {[%clk 0:00:08.5]} 68... Kf8 {[%clk 0:00:10.3]} 69. Kh7 {[%clk
0:00:09.4]} 69... Kf7 {[%clk 0:00:10.6]} 70. Kh8 {[%clk 0:00:10.3]} 70... Kf8
{[%clk 0:00:10.9]} 71. Kh7 {[%clk 0:00:11.2]} 1/2-1/2

[Event "Late-Titled-Tuesday-Blitz-September-19-2023"]
[Site "Chess.com"]
[Date "2023.09.19"]
[Round "7"]
[White "queen_iryna"]
[Black "alexrustemov"]
[Result "1-0"]
[WhiteElo "2388"]
[BlackElo "2747"]
[TimeControl "180+1"]
[EndTime "15:16:23 PDT"]
[Termination "queen_iryna won on time"]

1. e4 {[%clk 0:03:00.9]} 1... e6 {[%clk 0:02:57.7]} 2. d4 {[%clk 0:03:00]} 2...
d5 {[%clk 0:02:57.9]} 3. Nc3 {[%clk 0:03:00.3]} 3... Bb4 {[%clk 0:02:57.4]} 4.
Ne2 {[%clk 0:02:58.5]} 4... dxe4 {[%clk 0:02:55.5]} 5. a3 {[%clk 0:02:58.2]}
5... Bxc3+ {[%clk 0:02:55.4]} 6. Nxc3 {[%clk 0:02:59.1]} 6... Nc6 {[%clk
0:02:55.9]} 7. Bb5 {[%clk 0:02:57.9]} 7... Ne7 {[%clk 0:02:54.8]} 8. Bg5 {[%clk
0:02:57.2]} 8... f6 {[%clk 0:02:51.9]} 9. Be3 {[%clk 0:02:55.5]} 9... a6 {[%clk
0:02:49.9]} 10. Ba4 {[%clk 0:02:48.4]} 10... O-O {[%clk 0:02:45.7]} 11. Qd2
{[%clk 0:02:47.7]} 11... Nb8 {[%clk 0:02:36.4]} 12. Nxe4 {[%clk 0:02:38.2]}
12... Bd7 {[%clk 0:02:34.3]} 13. Bb3 {[%clk 0:02:29.2]} 13... Nd5 {[%clk
0:02:28.2]} 14. Nc5 {[%clk 0:02:23.7]} 14... Bc8 {[%clk 0:02:27]} 15. O-O-O
{[%clk 0:02:13]} 15... b6 {[%clk 0:02:27.1]} 16. Nd3 {[%clk 0:02:04.5]} 16...
Kh8 {[%clk 0:02:19.3]} 17. Nf4 {[%clk 0:02:00.5]} 17... b5 {[%clk 0:02:06.9]}
18. Rhe1 {[%clk 0:01:55.9]} 18... Nc6 {[%clk 0:02:01.4]} 19. Qe2 {[%clk
0:01:43.9]} 19... Na5 {[%clk 0:01:47.6]} 20. Bxd5 {[%clk 0:01:41.7]} 20... exd5
{[%clk 0:01:46.4]} 21. Qh5 {[%clk 0:01:41.8]} 21... Kg8 {[%clk 0:01:20.4]} 22.
Qxd5+ {[%clk 0:01:31.1]} 22... Qxd5 {[%clk 0:01:19.8]} 23. Nxd5 {[%clk
0:01:31.4]} 23... Bb7 {[%clk 0:01:13.1]} 24. Nxc7 {[%clk 0:01:20.8]} 24... Rac8
{[%clk 0:01:11]} 25. Ne6 {[%clk 0:01:20.3]} 25... Rf7 {[%clk 0:01:09.4]} 26. d5
{[%clk 0:01:14.4]} 26... Nc4 {[%clk 0:01:03.2]} 27. f3 {[%clk 0:01:00.9]} 27...
Ba8 {[%clk 0:00:38.2]} 28. Bf4 {[%clk 0:00:57.4]} 28... Rd7 {[%clk 0:00:36.2]}
29. d6 {[%clk 0:00:49.3]} 29... Kf7 {[%clk 0:00:33.4]} 30. Nc7 {[%clk
0:00:44.5]} 30... Bb7 {[%clk 0:00:30.5]} 31. b3 {[%clk 0:00:37.3]} 31... Nxa3
{[%clk 0:00:27.7]} 32. Kb2 {[%clk 0:00:34.7]} 32... b4 {[%clk 0:00:28.2]} 33.
Re2 {[%clk 0:00:23.5]} 33... Rcd8 {[%clk 0:00:22.2]} 34. Rde1 {[%clk 0:00:23]}
34... a5 {[%clk 0:00:14.5]} 35. Re7+ {[%clk 0:00:22.2]} 35... Kg6 {[%clk
0:00:14.5]} 36. Ne6 {[%clk 0:00:16.9]} 36... Rxe7 {[%clk 0:00:12.6]} 37. dxe7
{[%clk 0:00:17.2]} 37... Re8 {[%clk 0:00:13]} 38. Nc7 {[%clk 0:00:17.3]} 38...
Kf7 {[%clk 0:00:13.6]} 39. Nxe8 {[%clk 0:00:16.4]} 39... Kxe8 {[%clk 0:00:14.5]}
40. Bd6 {[%clk 0:00:16.1]} 40... Nb5 {[%clk 0:00:14.7]} 41. Bc5 {[%clk
0:00:16.4]} 41... Nc3 {[%clk 0:00:13.2]} 42. Re6 {[%clk 0:00:15.6]} 42... Nd5
{[%clk 0:00:05.6]} 43. Rd6 {[%clk 0:00:13.4]} 43... Kxe7 {[%clk 0:00:01.4]} 44.
Rxd5+ {[%clk 0:00:13.5]} 44... Ke6 {[%clk 0:00:02.1]} 45. Rd8 {[%clk 0:00:13.4]}
45... Bc6 {[%clk 0:00:01.9]} 46. Bb6 {[%clk 0:00:13.2]} 46... a4 {[%clk
0:00:01.6]} 47. bxa4 {[%clk 0:00:12.2]} 47... Bxa4 {[%clk 0:00:02.5]} 48. Bc5
{[%clk 0:00:12.4]} 48... b3 {[%clk 0:00:02.5]} 49. cxb3 {[%clk 0:00:12]} 49...
Bb5 {[%clk 0:00:03.4]} 50. Rg8 {[%clk 0:00:11.5]} 50... Kf7 {[%clk 0:00:02.4]}
51. Rf8+ {[%clk 0:00:11.8]} 51... Ke6 {[%clk 0:00:02.6]} 52. Rh8 {[%clk
0:00:12.3]} 52... h6 {[%clk 0:00:02.4]} 53. b4 {[%clk 0:00:12.5]} 53... Bf1
{[%clk 0:00:02.1]} 54. Rb8 {[%clk 0:00:13.4]} 54... Bxg2 {[%clk 0:00:02]} 55. f4
{[%clk 0:00:13.3]} 55... Kf5 {[%clk 0:00:01.1]} 56. Bd6 {[%clk 0:00:13.6]} 56...
Ke6 {[%clk 0:00:01.2]} 57. Bc7 {[%clk 0:00:12.9]} 57... Kf5 {[%clk 0:00:01.4]}
58. b5 {[%clk 0:00:12.5]} 58... h5 {[%clk 0:00:01.1]} 59. b6 {[%clk 0:00:12.5]}
59... h4 {[%clk 0:00:01.2]} 60. b7 {[%clk 0:00:11.8]} 1-0

[Event "Late-Titled-Tuesday-Blitz-September-19-2023"]
[Site "Chess.com"]
[Date "2023.09.19"]
[Round "7"]
[White "IlanSchnaider"]
[Black "artin10862"]
[Result "0-1"]
[WhiteElo "2758"]
[BlackElo "2926"]
[TimeControl "180+1"]
[EndTime "15:16:25 PDT"]
[Termination "artin10862 won by checkmate"]

1. e4 {[%clk 0:03:00.9]} 1... c5 {[%clk 0:02:59.8]} 2. Nf3 {[%clk 0:03:00.5]}
2... d6 {[%clk 0:03:00.4]} 3. Bb5+ {[%clk 0:03:00.8]} 3... Bd7 {[%clk
0:02:58.7]} 4. Bxd7+ {[%clk 0:03:01]} 4... Qxd7 {[%clk 0:02:59.6]} 5. c4 {[%clk
0:03:00.8]} 5... Nc6 {[%clk 0:02:57.1]} 6. O-O {[%clk 0:03:00.7]} 6... e5 {[%clk
0:02:57.4]} 7. Nc3 {[%clk 0:03:00.6]} 7... Be7 {[%clk 0:02:57.5]} 8. a3 {[%clk
0:02:59.6]} 8... Bd8 {[%clk 0:02:54.7]} 9. d3 {[%clk 0:03:00]} 9... Nge7 {[%clk
0:02:54.6]} 10. Rb1 {[%clk 0:02:59.5]} 10... O-O {[%clk 0:02:54.1]} 11. b4
{[%clk 0:02:58.7]} 11... f5 {[%clk 0:02:54.4]} 12. Nd5 {[%clk 0:02:51.9]} 12...
b6 {[%clk 0:02:48.1]} 13. bxc5 {[%clk 0:02:44.2]} 13... dxc5 {[%clk 0:02:47.3]}
14. Bb2 {[%clk 0:02:43.4]} 14... Ng6 {[%clk 0:02:45.7]} 15. exf5 {[%clk
0:02:39.9]} 15... Qxf5 {[%clk 0:02:44.8]} 16. Qe2 {[%clk 0:02:38]} 16... Bf6
{[%clk 0:02:33.4]} 17. Qe4 {[%clk 0:02:27.3]} 17... Qxe4 {[%clk 0:02:29.4]} 18.
dxe4 {[%clk 0:02:28.2]} 18... Nd4 {[%clk 0:02:30.1]} 19. Nxd4 {[%clk 0:02:18.4]}
19... cxd4 {[%clk 0:02:25.8]} 20. a4 {[%clk 0:02:18.9]} 20... Rfc8 {[%clk
0:02:25.4]} 21. Rfc1 {[%clk 0:02:16.7]} 21... Rc6 {[%clk 0:02:10.3]} 22. Nb4
{[%clk 0:01:59.2]} 22... Rcc8 {[%clk 0:02:07.7]} 23. Nd5 {[%clk 0:01:58.9]}
23... Nf8 {[%clk 0:01:52.1]} 24. g3 {[%clk 0:01:54.4]} 24... Ne6 {[%clk
0:01:52]} 25. Ba3 {[%clk 0:01:53.4]} 25... Bg5 {[%clk 0:01:44]} 26. f4 {[%clk
0:01:41.7]} 26... exf4 {[%clk 0:01:42.1]} 27. h4 {[%clk 0:01:42.4]} 27... Bd8
{[%clk 0:01:27.3]} 28. gxf4 {[%clk 0:01:41.7]} 28... Bxh4 {[%clk 0:01:22.7]} 29.
Kg2 {[%clk 0:01:12.9]} 29... Nc5 {[%clk 0:01:14.7]} 30. Kf3 {[%clk 0:01:06.5]}
30... Nxa4 {[%clk 0:01:12.5]} 31. Be7 {[%clk 0:01:06.2]} 31... Nc3 {[%clk
0:00:57.6]} 32. Bxh4 {[%clk 0:00:47.5]} 32... Nxb1 {[%clk 0:00:56.9]} 33. Ne7+
{[%clk 0:00:46.3]} 33... Kf7 {[%clk 0:00:30.9]} 34. Nxc8 {[%clk 0:00:46.3]}
34... Nd2+ {[%clk 0:00:31]} 35. Ke2 {[%clk 0:00:37.4]} 35... Nxe4 {[%clk
0:00:30.1]} 36. Ne7 {[%clk 0:00:26.3]} 36... g5 {[%clk 0:00:29.5]} 37. fxg5
{[%clk 0:00:15.8]} 37... Kxe7 {[%clk 0:00:29.3]} 38. g6+ {[%clk 0:00:16.7]}
38... Kd6 {[%clk 0:00:23]} 39. gxh7 {[%clk 0:00:17.6]} 39... Rh8 {[%clk
0:00:22.7]} 40. Kd3 {[%clk 0:00:17.5]} 40... Nc5+ {[%clk 0:00:21.8]} 41. Kxd4
{[%clk 0:00:17.4]} 41... Nb3+ {[%clk 0:00:21.5]} 42. Kc3 {[%clk 0:00:05.5]}
42... Nxc1 {[%clk 0:00:22.4]} 43. Kc2 {[%clk 0:00:04.2]} 43... Ne2 {[%clk
0:00:19.6]} 44. Kd2 {[%clk 0:00:04.1]} 44... Nf4 {[%clk 0:00:18.9]} 45. Bg3
{[%clk 0:00:03.1]} 45... Rxh7 {[%clk 0:00:18.5]} 46. Bxf4+ {[%clk 0:00:03]}
46... Kc5 {[%clk 0:00:19.3]} 47. Kd3 {[%clk 0:00:01.9]} 47... Rh3+ {[%clk
0:00:19.5]} 48. Kc2 {[%clk 0:00:02.2]} 48... Kxc4 {[%clk 0:00:19.6]} 49. Bb8
{[%clk 0:00:03.1]} 49... a5 {[%clk 0:00:19.1]} 50. Bc7 {[%clk 0:00:03.8]} 50...
Kb5 {[%clk 0:00:18.7]} 51. Bd8 {[%clk 0:00:03.4]} 51... Kc6 {[%clk 0:00:19.1]}
52. Kb2 {[%clk 0:00:02.3]} 52... Rd3 {[%clk 0:00:18]} 53. Be7 {[%clk 0:00:03]}
53... b5 {[%clk 0:00:18.3]} 54. Kc2 {[%clk 0:00:03.9]} 54... Rh3 {[%clk
0:00:17.6]} 55. Kb2 {[%clk 0:00:04.5]} 55... b4 {[%clk 0:00:17.9]} 56. Bd8
{[%clk 0:00:04.8]} 56... Kb5 {[%clk 0:00:18.4]} 57. Be7 {[%clk 0:00:05.6]} 57...
a4 {[%clk 0:00:18.8]} 58. Bd6 {[%clk 0:00:06.5]} 58... Kc4 {[%clk 0:00:17.9]}
59. Kc2 {[%clk 0:00:05.5]} 59... Rf3 {[%clk 0:00:17.9]} 60. Be5 {[%clk
0:00:04.7]} 60... Rf2+ {[%clk 0:00:18.3]} 61. Kc1 {[%clk 0:00:05.3]} 61... a3
{[%clk 0:00:18.7]} 62. Bg7 {[%clk 0:00:04.6]} 62... b3 {[%clk 0:00:18.5]} 63.
Kd1 {[%clk 0:00:05.1]} 63... b2 {[%clk 0:00:17.5]} 64. Ke1 {[%clk 0:00:03.4]}
64... Rc2 {[%clk 0:00:16.8]} 65. Bxb2 {[%clk 0:00:01.9]} 65... axb2 {[%clk
0:00:17.7]} 66. Kd1 {[%clk 0:00:01.5]} 66... b1=Q# {[%clk 0:00:17.4]} 0-1